Workbook

Sheet Aerodynamic Noise ABC
B1: Control Valve Aerodynamic Noise | C1: Calculation method by Hans D. Baumann
B2: ABC Method | C2: Worksheet by Jon F. Monsen
B3: USER INTERFACE
D4: Variable | E4: User Inputs
C5: Unit | D5: Name | E5: Case 1 | F5: Case 2 | G5: Case 3 | H5: Case 4
B6: Process Parameters
B7: Inlet pressure | C7: =IF(C25=1,"psia",IF(C25=2,"bar(a)",IF(C25=3,"kPa(a)","Undfined"))) -> psia | D7: P_1_ | E7: 116 | F7: 116 | G7: 116 | H7: 116
B8: Outlet pressure | C8: =IF(C25=1,"psia",IF(C25=2,"bar(a)",IF(C25=3,"kPa(a)","Undfined"))) -> psia | D8: P_2_ | E8: 58 | F8: 58 | G8: 58 | H8: 58
B9: Molecular mass (Air = 28.97) | C9: AMU | D9: M | E9: 28.97 | F9: 28.97 | G9: 28.97 | H9: 28.97
B10: =IF(C26=1," Sonic velocity of the gas (air = 1126 ft/sec)",IF(C26=2," Sonic velocity of the gas (air = 343 m/sec)","Undefined")) -> Sonic velocity of the gas (air = 1126 ft/sec) | C10: =IF(C26=1,"ft/sec",IF(C26=2,"m/sec","Undefined")) -> ft/sec | D10: ci_ | E10: 1126 | F10: 1126 | G10: 1126 | H10: 1126
B12: Valve/Pipe Parameters
B13: Downstream pipe diameter | C13: =IF(C27=1,"inch",IF(C27=2,"mm","Undefined")) -> inch | D13: D_2_ | E13: 2 | F13: 2 | G13: 2 | H13: 2
B14: Valve capacity, CV | D14: C_v | E14: 54.5 | F14: 54.5 | G14: 54.5 | H14: 54.5
B15: Pressure recovery factor, FL | D15: F_L | E15: 0.82 | F15: 0.82 | G15: 0.82 | H15: 0.82
B16: Valve style modifier, Fd | D16: F_d | E16: 0.25 | F16: 0.25 | G16: 0.25 | H16: 0.25
B18: Modifiers
B19: Downstream Pipe schedule (40=0, 80=4, 160=8) | C19: dB | D19: ps | E19: 0 | F19: 0 | G19: 0 | H19: 0
B20: Valve Style, rw (globe = 3, others = 0) | C20: dB | D20: rw | E20: 3 | F20: 3 | G20: 3 | H20: 3
B22: Calculated SPL (LpAe1m) | C22: dB(A) | D22: SPL | E22: =IFERROR(LpAe1m,"") -> 92.5 | F22: =IFERROR(F49,"") -> 92.5 | G22: =IFERROR(G49,"") -> 92.5 | H22: =IFERROR(H49,"") -> 92.5
B24: Units Selection
B25: Presssure: 1 = psia 2 = bar 3 = kPa | C25: 1
B26: Sonic Velocity: 1 = ft/sec. 2 = m/sec. | C26: 1
B27: Size: 1 = inch 2 = mm | C27: 1
B32: NO USER INPUT IS REQUIRED IN THIS SECTION
B33: WORKSHEET UNITS CONVERTED TO UNITS REQUIRED BY THE CALCULATIONS. ALL OTHER VARIABLES ARE INDEPENDENT OF UNITS
D34: Variable name
B35: P_1(Calculation uses psia) | D35: P_1 | E35: =IF($C25=1,P_1_*1,IF($C25=2,P_1_*14.5,IF($C25=3,P_1_*0.145,"Undefined"))) -> 116.0 | F35: =IF($C25=1,F7*1,IF($C25=2,F7*14.5,IF($C25=3,F7*0.145,"Undefined"))) -> 116.0 | G35: =IF($C25=1,G7*1,IF($C25=2,G7*14.5,IF($C25=3,G7*0.145,"Undefined"))) -> 116.0 | H35: =IF($C25=1,H7*1,IF($C25=2,H7*14.5,IF($C25=3,H7*0.145,"Undefined"))) -> 116.0
B36: P_2 (Calculation uses psia) | D36: P_2 | E36: =IF($C25=1,P_2_*1,IF($C25=2,P_2_*14.5,IF($C25=3,P_2_*0.145,"Undefined"))) -> 58.0 | F36: =IF($C25=1,F8*1,IF($C25=2,F8*14.5,IF($C25=3,F8*0.145,"Undefined"))) -> 58.0 | G36: =IF($C25=1,G8*1,IF($C25=2,G8*14.5,IF($C25=3,G8*0.145,"Undefined"))) -> 58.0 | H36: =IF($C25=1,H8*1,IF($C25=2,H8*14.5,IF($C25=3,H8*0.145,"Undefined"))) -> 58.0
B37: ci (Calculation uses ft/sec) | D37: ci | E37: =IF($C26=1,ci_*1,IF($C26=2,ci_*3.2808,"Undefined")) -> 1126.0 | F37: =IF($C26=1,F10*1,IF($C26=2,F10*3.2808,"Undefined")) -> 1126.0 | G37: =IF($C26=1,G10*1,IF($C26=2,G10*3.2808,"Undefined")) -> 1126.0 | H37: =IF($C26=1,H10*1,IF($C26=2,H10*3.2808,"Undefined")) -> 1126.0
B38: D_2 (Calculation uses inch) | D38: D_2 | E38: =IF($C27=1,D_2_*1,IF($C27=2,D_2_*0.03937,"Undefined")) -> 2.0 | F38: =IF($C27=1,F13*1,IF($C27=2,F13*0.03937,"Undefined")) -> 2.0 | G38: =IF($C27=1,G13*1,IF($C27=2,G13*0.03937,"Undefined")) -> 2.0 | H38: =IF($C27=1,H13*1,IF($C27=2,H13*0.03937,"Undefined")) -> 2.0
G40: `
B42: FINAL CALCULATIONS
B43: x, Pressure ratio | D43: X | E43: =(P_1-P_2)/P_1 -> 0.50 | F43: =(F35-F36)/F35 -> 0.50 | G43: =(G35-G36)/G35 -> 0.50 | H43: =(H35-H36)/H35 -> 0.50
B44: DFL | D44: DELTA F_L | E44: =IF(F_L<0.7,30*LOG10(0.7/F_L),30*LOG10(F_L/0.7)) -> 2.06 | F44: =IF(F15<0.7,30*LOG10(0.7/F15),30*LOG10(F15/0.7)) -> 2.06 | G44: =IF(G15<0.7,30*LOG10(0.7/G15),30*LOG10(G15/0.7)) -> 2.06 | H44: =IF(H15<0.7,30*LOG10(0.7/H15),30*LOG10(H15/0.7)) -> 2.06
B45: A | C45: dB | D45: A | E45: =25*LOG10(D_2)-10+20*LOG10(C_v/D_2^2) -> 20.21 | F45: =25*LOG10(F38)-10+20*LOG10(F14/F38^2) -> 20.21 | G45: =25*LOG10(G38)-10+20*LOG10(G14/G38^2) -> 20.21 | H45: =25*LOG10(H38)-10+20*LOG10(H14/H38^2) -> 20.21
B46: B | C46: dB | D46: B | E46: =35*LOG(P_1)-35 -> 37.26 | F46: =35*LOG(F35)-35 -> 37.26 | G46: =35*LOG(G35)-35 -> 37.26 | H46: =35*LOG(H35)-35 -> 37.26
B47: C | C47: dB | D47: C_ | E47: =27+30+30*LOG(X)+20*LOG(F_d) -> 35.93 | F47: =27+30+30*LOG(F43)+20*LOG(F16) -> 35.93 | G47: =27+30+30*LOG(G43)+20*LOG(G16) -> 35.93 | H47: =27+30+30*LOG(H43)+20*LOG(H16) -> 35.93
B48: G, correction for gasses other than air | D48: G | E48: =20*LOG(ci/1126)+15*LOG(M/28.97) -> 0.00 | F48: =20*LOG(F37/1126)+15*LOG(F9/28.97) -> 0.00 | G48: =20*LOG(G37/1126)+15*LOG(G9/28.97) -> 0.00 | H48: =20*LOG(H37/1126)+15*LOG(H9/28.97) -> 0.00
B49: LpAe1m = A+B+C+DFL+G-rw-ps | C49: dB(A) | D49: LpAe1m | E49: =A+B+C_+DELTA_F_L+G-rw-ps -> 92.46 | F49: =F45+F46+F47+F44+F48-F20-F19 -> 92.46 | G49: =G45+G46+G47+G44+G48-G20-G19 -> 92.46 | H49: =H45+H46+H47+H44+H48-H20-H19 -> 92.46
B50: (This calculated value of noise is copied to the user interface.)

Sheet About the worksheet
B3: Simple Excel worksheet predicts control valve aerodynamic noise.
B5: Recently an article was published that presented an easily constructed Excel sheet that estimates hydrodynamic noise in control valves1. A number of people have asked me if there is something similar for aerodynamic noise. It turns out that Hans D. Baumann, an internationally recognized control valve expert who has spent many years investigating control valve noise mechanisms and theory and who developed the method in Reference 1 also has a similar simplified method for estimating control valve aerodynamic noise. He has kindly given me permission to use it as a basis for an Excel worksheet which is the subject of this paper.
B7: IEC 60534-8-3 is nearly universally recognized as the preferred method for predicting control valve aerodynamic noise and most control valve manufacturers include it in their control valve sizing and selection applications. For the user who wants to make quick noise predictions or who wants to construct their own valve sizing application, programming the IEC noise standard can be a daunting task. For example, I have constructed an Excel sheet that exactly implements the IEC standard. That Excel sheet consists of 261 lines of formulas, a task that many would not have the time or enthusiasm for. Thus the justification for a simplified noise prediction method.
B9: Reliable valve noise test data is difficult to find unless you are a valve manufacturer and then you tend not to share it. I did find 10 noise tests that I believe to be reliable and using this simplified noise prediction method the average absolute error was 3.3 dB(A). Control valve noise prediction methods normally claim accuracy of plus or minus 5 dB(A).
B11: The calculation method is shown on the Calculation Method tab The method presented here is simple enough to be implemented with a pocket calculator or one of the many calculator apps available for cell phones, but using the Excel sheet in this file, the calculations can be done even more quickly. We refer to this as the ABC method, partly because the term “ABC” is often recognized as something that is simple, and also because the main noise calculation is divided into three parts, named A, B and C.
B13: The worksheet requires the sonic velocity of the gas as a process parameter. If the sonic velocity is not known, I have included a tab that has a worksheet that can calculate the sonic velocity of a gas.
B15: Reference 1. Excel-worksheet predicts control valve hydrodynamic noise, Valve World, July 2020 pp 44 – 45
B17: Reference 1 can be viewed at:
B18: https://www.valin.com/resources/articles/excel-worksheet-predicts-control-valve-hydrodynamic-noise

Sheet Calculation Method
B1: ABC Method for predicting control vavle aerodynamic noise.
B2: Calculation method by Hans D. Baumann
B3: Excel worksheet by Jon Monsen
B5: `
B6: P_1 upstram pressure (Calculation uses psia)
B7: P_2 downstream pressure (Calculation uses psia)
B8: ci, gas sonic velocity (Calculation uses ft/sec)
B9: downstram pipe size (Calculation uses inch)
B11: The worksheet includes the capability to easily specify other units that are often used:
B12: Pressure: bar, kPa(a), Velocity, m/sec, Pipe size, mm
B15: Initial intermediate calculations:
B16: Pressure ratio, X = (P1 - P2) / P1
B17: A = 25 log(D2) - 10 + 20 log(Cv / D22)
B18: B = 35 log(P1) - 35
B19: C = 27 + 30 +30 log(X) + 20 log(Fd)
B20: DFL: if FL < 0.7 then DFL = 30 log(0.7 / FL) otherwise,
B21: DFL=30 log(FL / 0.7)
B22: G = 20 log(ci / 1125 ) + 15 log(M / 28.97)
B23: The final calculation combines the above intermediate calculations to obtain the estimated aerodynamic noise,
B24: LpAe1m = A + B + C + DFL + G – rw – ps
B26: Nomenclature:
B27: A: SPL due to valve size and Cv
B28: B: SPL due to upstream pressure
B29: C: SPL due to pressure ratio and Fd
B30: DFL: SPL correction for FL greater or less than 0.7
B31: FL: Valve Liquid pressure recovery factor at operating valve travel
B32: G: Correction for gasses other than air based on sonic velocity and molecular mass of the gas relative to air. G = 0 for air
B33: P_1, P_2: pressure upstream and downstream of valve (psia)
B34: D2: Pipe size downstream of valve (inch)
B35: Cv: Valve flow coefficient at operating valve travel
B36: Fd: Valve style modifier at operating valve travel
B37: ci: Sonic velocity of the gas in feet per second. Air = 1125
B38: M: Molecular mass of the gas. Air = 28.97
B39: rw: SPL correction for globe valves, rw = 3. For all others rw = 0
B40: ps: Correction for downstream pipe schedule. (40=0, 80=4, 160=8)

Sheet Gas Sonic Vel Calculator
A1: Gas Sonic Velocity | G1: J. Monsen
A3: GAS: | B3: Air | D3: TAG:
A5: Temperature units (F, C or K) | C5: F
A7: =IF(TEMP_UNITS="F","TEMP. (F)",IF(TEMP_UNITS="C", "TEMP. (C)","TEMP. (K)")) -> TEMP. (F)
A8: 68 | F8: Data input
F9: Final result
A10: Molecular Mass, M | F10: Intermediate
A11: 28.97 | F11: calculation
A13: Spec. Heat Ratio, GAMMA
A14: 1.4
A16: SONIC VELOCITY, m/s
A17: =SQRT(8314*Temp._converted_to_K*GAMMA/M) -> 343
A19: SONIC VELOCITY, ft/s
A20: =SONIC_VELOCITY__m_s*3.281 -> 1126
A22: Temp. converted to K
A23: =IF(TEMP_UNITS="F",((TEMP-32)/1.8)+273.15,IF(TEMP_UNITS="C",TEMP+273.15,TEMP)) -> 293.15
A26: This worksheet is distributed at no charge on an as-is basis. The author does not assume any liability for its use.
A27: It is the user’s responsibility to determine its applicability to their application.
A29: INSTRUCTIONS
A31: Enter the temperature unis you want to use. Valid entries are F, C or K.
A32: Enter the given temperature (in the units you have selected) the molecular mass of the
A33: gas and its specific heat ratio.
A35: The equation for gas sonic velocitay is:
A41: Where c is the speed of sound in the gas, meters per second
A42: g is the ratio of specific heats of the gas
A43: T is the temperature in Kelvin
A44: M is the molecular mass
A45: R is the universal gas constant, 8314
A47: The worksheet is protected to prevent accidental changes. If you want to make changes,
A48: there is no password. Select REVIEW then UNPROTECT SHEET, but you do so at
A49: your own risk.
